Workbook

Sheet 1
A1: Школа | B1: МБОУ "Лицей №188" г. Казани | E1: Отд./корп | I1: День | J1: 2023-09-19
A3: Прием пищи | B3: Раздел | C3: № рец. | D3: Блюдо | E3: Выход, г | F3: Цена | G3: Калорийность | H3: Белки | I3: Жиры | J3: Углеводы
A4: Завтрак | B4: ='[1]4-9, 18-23 сент.'!B11 -> гор.блюдо | C4: ='[1]4-9, 18-23 сент.'!C11 -> ТТК 2022 г | D4: ='[1]4-9, 18-23 сент.'!D11 -> Котлеты "Аппетитные" | E4: ='[1]4-9, 18-23 сент.'!E11 -> 90 | G4: ='[1]4-9, 18-23 сент.'!G11 -> 158 | H4: ='[1]4-9, 18-23 сент.'!H11 -> 11.20 | I4: ='[1]4-9, 18-23 сент.'!I11 -> 4.45 | J4: ='[1]4-9, 18-23 сент.'!J11 -> 18.50
B5: ='[1]4-9, 18-23 сент.'!B12 -> гор.блюдо | C5: ='[1]4-9, 18-23 сент.'!C12 -> №312/2015 г | D5: ='[1]4-9, 18-23 сент.'!D12 -> Пюре картофельное | E5: ='[1]4-9, 18-23 сент.'!E12 -> 150 | G5: ='[1]4-9, 18-23 сент.'!G12 -> 169 | H5: ='[1]4-9, 18-23 сент.'!H12 -> 3.28 | I5: ='[1]4-9, 18-23 сент.'!I12 -> 7.28 | J5: ='[1]4-9, 18-23 сент.'!J12 -> 22.00
B6: ='[1]4-9, 18-23 сент.'!B13 -> гор.напиток | C6: ='[1]4-9, 18-23 сент.'!C13 -> ТТК 2022 г | D6: ='[1]4-9, 18-23 сент.'!D13 -> Компот из замороженной компотной смеси | E6: ='[1]4-9, 18-23 сент.'!E13 -> 180 | G6: ='[1]4-9, 18-23 сент.'!G13 -> 36 | H6: ='[1]4-9, 18-23 сент.'!H13 -> 0.09 | I6: ='[1]4-9, 18-23 сент.'!I13 -> 0.02 | J6: ='[1]4-9, 18-23 сент.'!J13 -> 8.69
B7: ='[1]4-9, 18-23 сент.'!B14 -> закуска | C7: ='[1]4-9, 18-23 сент.'!C14 -> № 532/2013г, Самара | D7: ='[1]4-9, 18-23 сент.'!D14 -> Салат-бар (Огурцы свежая порциями, помидоры, фасоль конс., сухарики, масло раст.) | E7: ='[1]4-9, 18-23 сент.'!E14 -> 60 | G7: ='[1]4-9, 18-23 сент.'!G14 -> 90 | H7: ='[1]4-9, 18-23 сент.'!H14 -> 1.62 | I7: ='[1]4-9, 18-23 сент.'!I14 -> 6.10 | J7: ='[1]4-9, 18-23 сент.'!J14 -> 6.92
B8: ='[1]4-9, 18-23 сент.'!B15 -> хлеб | C8: ='[1]4-9, 18-23 сент.'!C15 -> ТТК | D8: ='[1]4-9, 18-23 сент.'!D15 -> Хлебная корзина (хлеб пш., хлеб рж.-пш.) | E8: ='[1]4-9, 18-23 сент.'!E15 -> 40 | G8: ='[1]4-9, 18-23 сент.'!G15 -> 91 | H8: ='[1]4-9, 18-23 сент.'!H15 -> 2.52 | I8: ='[1]4-9, 18-23 сент.'!I15 -> 0.36 | J8: ='[1]4-9, 18-23 сент.'!J15 -> 18.84
A9: ИТОГО | E9: 520 | G9: ='[1]4-9, 18-23 сент.'!G16 -> 544 | H9: ='[1]4-9, 18-23 сент.'!H16 -> 18.71 | I9: ='[1]4-9, 18-23 сент.'!I16 -> 18.21 | J9: ='[1]4-9, 18-23 сент.'!J16 -> 74.95
A10: Завтрак 2 | B10: фрукты
A13: Обед | B13: закуска
B14: 1 блюдо
B15: 2 блюдо
B16: гарнир
B17: сладкое
B18: хлеб бел.
B19: хлеб черн.
